bitfinex-derivatives/quotes_SOLF0:USTF0_20260123
["timestamp","ask_amount","ask_price","bid_price","bid_amount"]
[1769182969844,8.99647116,126.94,126.87,9.22452284]
[1769182970036,8.99647116,126.94,126.88,7.1021]
[1769182970445,8.99647116,126.94,126.89,7.1016]
[1769182970652,8.99647116,126.94,126.89,9.22342284]
[1769182970846,9.21932284,126.97,126.89,2.12182284]
[1769182970847,8.99647116,126.96,126.89,2.12182284]
[1769182971150,8.99647116,126.96,126.9,7.101]
[1769182971653,8.99647116,126.96,126.91,9.22222284]
[1769182976242,8.99647116,126.96,126.92,7.0999]
[1769182977049,8.99647116,126.96,126.9,7.1006]
[1769182978749,8.99647116,126.94,126.9,7.1006]
[1769182980156,8.99647116,126.94,126.88,9.22342284]
[1769182980355,8.99647116,126.94,126.88,2.12182284]
[1769182981854,8.99647116,126.94,126.89,7.1011]
[1769182990475,8.99647116,126.94,126.9,7.1009]
[1769183001189,16.09417116,126.96,126.9,7.1009]
[1769183001493,8.99647116,126.95,126.9,7.1009]
[1769183002189,2.12182284,126.97,126.91,7.1]
[1769183002190,11.118294,126.97,126.91,7.1]
[1769183003983,16.09227116,127.0,126.92,2.12182284]
[1769183004197,11.118294,126.99,126.92,2.12182284]
[1769183004886,8.99647116,126.98,126.92,9.22142284]
[1769183006983,8.99647116,126.98,126.92,7.0996]
[1769183010896,8.99647116,126.98,126.93,7.0993]
[1769183013789,8.99647116,126.96,126.91,7.0999]
[1769183015198,8.99647116,126.96,126.9,2.119998]
[1769183018503,8.99647116,126.95,126.89,7.1013]
[1769183019003,11.11646916,126.97,126.9,2.119998]
[1769183019191,8.99647116,126.97,126.9,7.1009]
[1769183019395,8.99647116,126.97,126.91,2.119998]
[1769183019597,11.11646916,127.0,126.91,9.220198]
[1769183020893,16.09267116,126.99,126.91,9.220198]
[1769183021999,8.99647116,126.99,126.91,9.220198]
[1769183024498,8.99647116,126.97,126.89,16.79532492]
[1769183024698,8.99647116,126.95,126.89,9.221098]
[1769183026501,8.99647116,126.95,126.87,18.91642292]
[1769183026706,8.99647116,126.93,126.86,9.69422492]
[1769183026899,8.99647116,126.93,126.85,9.69422492]
[1769183027102,11.11646916,126.9,126.84,9.69422492]
[1769183027306,11.11646916,126.9,126.83,9.69422492]
[1769183028008,11.11646916,126.9,126.82,11.81422292]
[1769183028902,11.11646916,126.9,126.84,7.1043]
[1769183029103,8.99647116,126.92,126.84,2.119998]
[1769183030008,11.11646916,126.91,126.85,7.1036]
[1769183030510,11.11646916,126.91,126.83,7.1045]
[1769183031202,11.11646916,126.91,126.84,7.1043]
[1769183031397,11.11646916,126.91,126.82,112.644698]
[1769183032900,11.11646916,126.91,126.85,7.1038]
[1769183033609,11.11646916,126.89,126.85,7.1038]
[1769183034200,8.99647116,126.89,126.85,7.1038]
[1769183035020,7.116e-05,126.89,126.86,7.1032]
[1769183035817,7.116e-05,126.89,126.84,7.1038]
[1769183036014,7.116e-05,126.89,126.83,0.12720557]
[1769183036217,7.116e-05,126.89,126.84,2.27273775]
[1769183037514,7.116e-05,126.89,126.84,9.37663775]
[1769183037706,7.116e-05,126.89,126.84,0.15273975]
[1769183038111,2.119998,126.91,126.84,0.15273975]
[1769183038112,4.49827116,126.9,126.84,0.15273975]
[1769183039117,4.49827116,126.9,126.85,7.1037]
[1769183041330,4.49827116,126.9,126.86,7.1032]
[1769183044319,4.49827116,126.9,126.84,7.1041]
[1769183044522,4.49827116,126.88,126.84,7.1041]
[1769183044712,2.119998,126.89,126.84,7.1041]
[1769183046214,6.61826916,126.9,126.85,7.1038]
[1769183047015,6.61826916,126.9,126.86,7.1031]
[1769183047416,2.119998,126.88,126.82,0.97767216]
[1769183047619,2.119998,126.88,126.84,7.1039]
[1769183047824,4.68288168,126.89,126.84,0.97767216]
[1769183048526,6.80287968,126.91,126.84,0.97767216]
[1769183048928,4.68288168,126.91,126.85,0.99342573]
[1769183050229,6.80287968,126.93,126.86,1.00897838]
[1769183050821,6.80287968,126.93,126.86,3.12897638]
[1769183051025,4.68288168,126.92,126.86,3.12897638]
[1769183051421,4.68288168,126.92,126.87,7.1027]
[1769183052029,2.119998,126.93,126.88,7.1021]
[1769183052519,4.68288168,126.94,126.89,7.1016]
[1769183052520,6.80287968,126.94,126.89,7.1016]
[1769183053231,6.80287968,126.94,126.9,7.101]
[1769183056924,4.68288168,126.94,126.9,7.101]
[1769183058931,6.80287968,126.96,126.89,1.13544301]
[1769183059236,6.80287968,126.96,126.9,3.25544101]
[1769183059237,4.68288168,126.96,126.9,3.25544101]
[1769183059933,4.68288168,126.96,126.92,7.0998]
[1769183060530,2.119998,126.98,126.92,7.0998]
[1769183060531,6.80287968,126.98,126.92,7.0998]
[1769183061533,4.68288168,126.97,126.92,7.0998]
[1769183061932,4.68288168,126.97,126.93,7.0992]
[1769183067835,4.68288168,126.99,126.94,7.0987]
[1769183069739,4.68288168,127.01,126.95,8.35938327]
[1769183070140,4.68288168,127.01,126.95,1.26168327]
[1769183070941,4.68288168,127.01,126.96,7.0975]
[1769183072842,4.91652042,127.03,126.96,0.82530221]
[1769183073042,4.91652042,127.03,126.97,2.94485488]
[1769183073336,4.91652042,127.03,126.98,0.82530221]
[1769183073945,2.042e-05,127.03,126.98,0.82530221]
[1769183074146,308.94315287,127.05,126.99,2.11955267]
[1769183074653,308.94315287,127.05,127.01,7.0948]
[1769183074948,7.0915,127.07,127.01,7.0948]
[1769183075139,2.11955267,127.08,127.01,7.0948]
[1769183075746,9.21105267,127.08,127.01,7.0948]
[1769183075954,4.91652042,127.07,127.01,7.0948]
[1769183076945,4.91652042,127.06,127.01,7.0948]
[1769183082555,4.91652042,127.06,127.0,7.0954]
[1769183083557,4.91652042,127.06,127.01,7.0949]
[1769183083861,4.91652042,127.03,126.97,7.06000302]
[1769183084056,4.91652042,127.03,126.97,12.03715035]
[1769183084252,4.91652042,127.01,126.97,7.0967]
[1769183086757,4.91652042,127.03,126.98,7.0965]
[1769183086965,7.03607309,127.05,126.98,4.94045035]
[1769183087164,7.03607309,127.05,126.99,4.94045035]
[1769183087363,7.03607309,127.07,127.0,7.06000302]
[1769183088960,7.03607309,127.07,127.02,7.0943]
[1769183089353,4.91652042,127.06,127.0,4.94045035]
[1769183090458,4.91652042,127.04,126.98,4.94045035]
[1769183090763,2.11955267,127.03,126.98,4.94045035]
[1769183093068,7.03607309,127.05,126.99,7.0959]
[1769183094553,7.03607309,127.05,127.0,7.0954]
[1769183094961,4.91652042,127.05,127.0,7.0954]
[1769183095160,7.03607309,127.05,127.0,7.0954]
[1769183095670,7.03607309,127.05,126.99,7.096]
[1769183098075,7.03607309,127.05,127.0,7.0954]
[1769183099161,14.12877309,127.05,126.98,12.03645035]
[1769183099359,14.12877309,127.05,126.98,4.94045035]
[1769183100269,14.12877309,127.05,126.99,12.03585035]
[1769183101465,14.12877309,127.05,127.0,12.03585035]
[1769183101663,7.03607309,127.05,127.0,12.03585035]
[1769183104370,4.83095204,127.07,127.02,7.0942]
[1769183104565,7.0915,127.08,127.02,5.08798753]
[1769183104566,2.11955267,127.08,127.02,5.08798753]
[1769183104771,6.95050471,127.08,127.02,5.08798753]
[1769183105966,14.04150471,127.08,127.02,12.18198753]
[1769183106162,4.83095204,127.07,126.99,5.08798753]
[1769183106363,6.95050471,127.06,126.99,5.08798753]
[1769183107366,5.07368053,127.08,127.02,7.0942]
[1769183107573,7.1932332,127.08,127.02,12.02335377]
[1769183109570,14.2844332,127.08,127.02,12.02335377]
[1769183109771,5.07368053,127.07,127.02,7.0942]
[1769183110774,12.16528053,127.07,127.01,4.92915377]
[1769183111175,2.11955267,127.06,127.01,4.92915377]
[1769183111377,5.07368053,127.05,126.99,7.0959]
[1769183111670,5.07368053,127.05,126.99,12.02505377]
[1769183111974,2.11955267,127.04,126.99,12.02505377]
[1769183112371,2.11955267,127.04,126.99,4.92915377]
[1769183112975,2.11955267,127.04,126.99,12.02495377]
[1769183113983,5.07368053,127.05,126.99,12.02495377]
[1769183114181,110.2917,127.1,126.96,110.4055]
[1769183114182,14.2847332,127.08,127.01,4.92915377]
[1769183115478,5.07368053,127.07,127.01,4.92915377]
[1769183115879,5.07368053,127.07,127.02,7.0941]
[1769183117185,12.16518053,127.07,127.01,4.92915377]
[1769183119992,12.16518053,127.07,127.01,12.02385377]
[1769183120895,5.07368053,127.05,126.99,4.92915377]
[1769183121287,5.07368053,127.05,126.99,12.02455377]
[1769183122294,5.07368053,127.05,127.0,7.0953]
[1769183122495,5.07368053,127.05,126.99,4.92915377]
[1769183122496,5.07368053,127.08,127.02,4.92915377]
[1769183124684,12.16468053,127.08,127.02,4.92915377]
[1769183124889,12.16468053,127.08,127.02,12.02335377]
[1769183125093,5.07368053,127.08,127.02,12.02335377]
[1769183125284,7.0904,127.09,127.02,4.92915377]
[1769183125490,2.11955267,127.1,127.05,4.92915377]
[1769183125691,7.1932332,127.12,127.05,4.92915377]
[1769183125994,14.2820332,127.12,127.05,12.02165377]
[1769183126594,5.07368053,127.12,127.06,4.92915377]
[1769183126798,14.2813332,127.14,127.06,4.92915377]
[1769183127295,5.07368053,127.13,127.06,4.92915377]
[1769183128092,7.1932332,127.16,127.08,4.92915377]
[1769183128688,14.2799332,127.16,127.09,4.92915377]
[1769183128891,5.07368053,127.16,127.1,4.92915377]
[1769183129396,7.1932332,127.15,127.08,4.92915377]
[1769183129892,12.16138053,127.14,127.07,7.0911]
[1769183130188,7.0877,127.14,127.07,12.02025377]
[1769183130393,12.16138053,127.14,127.07,12.02025377]
[1769183130593,5.07368053,127.14,127.08,7.0908]
[1769183130797,5.07368053,127.16,127.09,4.92915377]
[1769183130995,7.18792393,127.16,127.09,4.92915377]
[1769183131498,2.1142434,127.16,127.1,4.92915377]
[1769183131895,5.07368053,127.18,127.12,12.10185136]
[1769183132201,5.05360148,127.2,127.13,5.01315136]
[1769183133292,7.16784488,127.22,127.15,12.10005136]
[1769183133994,9.1638388,127.23,127.17,5.01315136]
[1769183134391,11.2780822,127.23,127.17,5.01315136]
[1769183134584,9.1638388,127.23,127.17,5.01315136]
[1769183134789,9.1638388,127.23,127.18,5.01315136]
[1769183135188,9.1638388,127.23,127.18,12.09825136]
[1769183135997,9.1638388,127.23,127.18,5.01315136]
[1769183136699,9.1638388,127.23,127.18,12.09835136]
[1769183136999,9.1638388,127.23,127.18,5.01315136]
[1769183137198,9.1638388,127.23,127.14,115.43166457]
[1769183137199,5.05360148,127.22,127.16,5.01315136]
[1769183137399,5.05360148,127.22,127.14,12.10045136]
[1769183137894,9.1638388,127.23,127.17,5.01315136]
[1769183138091,5.05360148,127.31,127.2,5.01315136]
[1769183138290,5.05360148,127.28,127.2,5.01315136]
[1769183139399,110.1087,127.31,127.2,5.01315136]
[1769183139400,5.05360148,127.3,127.2,5.01315136]
[1769183139592,5.18396457,127.31,127.2,5.01315136]
[1769183139593,5.05360148,127.32,127.22,5.01315136]
[1769183139803,5.05360148,127.32,127.25,5.01315136]
[1769183140597,5.05360148,127.31,127.22,12.09595136]
[1769183140991,5.05360148,127.31,127.23,5.01315136]
[1769183141695,5.05360148,127.3,127.23,5.01315136]
[1769183141890,5.05360148,127.3,127.21,5.01315136]
[1769183142300,5.05360148,127.27,127.19,5.01315136]
[1769183142999,7.0812,127.26,127.19,5.01315136]
[1769183143794,5.05360148,127.27,127.19,12.09785136]
[1769183143999,5.05360148,127.27,127.2,5.01315136]
[1769183144199,5.05360148,127.3,127.2,5.01315136]
[1769183144501,115.29306457,127.31,127.2,5.01315136]
[1769183144502,12.13310148,127.29,127.21,7.0836]
[1769183145195,12.13310148,127.29,127.2,5.01315136]
[1769183145397,5.05360148,127.28,127.2,5.01315136]
[1769183145600,5.05360148,127.27,127.15,5.01315136]
[1769183145796,5.05360148,127.25,127.16,5.01315136]
[1769183146197,5.05360148,127.23,127.13,5.01315136]
[1769183146503,5.05360148,127.23,127.13,12.10095136]
[1769183147004,12.13690148,127.22,127.14,12.10055136]
[1769183147196,5.05360148,127.22,127.14,5.01315136]
[1769183149301,12.13700148,127.22,127.14,12.10065136]
[1769183149502,12.13700148,127.22,127.15,5.01315136]
[1769183149706,12.13700148,127.22,127.12,5.01315136]
[1769183149707,5.05360148,127.21,127.12,5.01315136]
[1769183150204,12.13750148,127.21,127.13,12.10115136]
[1769183150712,5.05360148,127.24,127.13,5.01315136]
[1769183151308,5.05360148,127.24,127.14,5.01315136]
[1769183151603,5.05360148,127.23,127.14,5.01315136]
[1769183151903,110.1686,127.24,127.14,12.10065136]
[1769183151904,12.13690148,127.22,127.14,12.10065136]
[1769183152308,12.13690148,127.22,127.15,5.01315136]
[1769183154202,5.05360148,127.22,127.15,12.10005136]
[1769183156810,12.13690148,127.22,127.15,5.01315136]
[1769183157801,5.05360148,127.2,127.13,12.10095136]
[1769183158100,12.13750148,127.21,127.13,5.01315136]
[1769183158303,5.18396457,127.22,127.13,5.01315136]
[1769183158596,12.13650148,127.23,127.13,5.01315136]
[1769183159000,2.11262402,127.21,127.14,5.01315136]
[1769183159211,7.1662255,127.21,127.15,7.0869]
[1769183159401,7.1662255,127.21,127.14,5.01315136]
[1769183160513,7.1662255,127.21,127.15,7.087]
[1769183160711,2.11262402,127.19,127.14,5.01315136]
[1769183161013,2.11262402,127.19,127.14,12.10065136]
[1769183161207,2.11262402,127.21,127.15,5.01315136]
[1769183161611,2.11262402,127.23,127.17,5.01315136]
[1769183162102,2.11262402,127.23,127.18,12.48470515]
[1769183162502,2.11262402,127.21,127.14,5.39940515]
[1769183162815,2.11262402,127.19,127.14,5.39940515]
[1769183163322,2.11262402,127.17,127.11,5.39940515]
[1769183163516,2.11262402,127.17,127.12,12.48800515]
[1769183163712,2.11262402,127.17,127.12,5.39940515]
[1769183164812,2.11262402,127.17,127.13,7.0881]
[1769183165018,12.4821894,127.2,127.13,7.0881]
[1769183165919,12.4821894,127.2,127.13,12.81305779]
[1769183166118,17.93732542,127.22,127.15,5.72495779]
[1769183166507,5.66392583,127.21,127.15,5.72495779]
[1769183167216,12.74772583,127.21,127.15,5.72495779]
[1769183167417,12.74772583,127.21,127.14,7.0875]
[1769183168018,5.66392583,127.2,127.13,5.72495779]
[1769183168222,12.74822583,127.2,127.13,5.72495779]
[1769183169126,5.66392583,127.18,127.1,5.72495779]
[1769183169622,12.75112583,127.15,127.08,5.72495779]
[1769183170125,5.66392583,127.15,127.08,5.72495779]
[1769183170419,5.66392583,127.15,127.08,12.81575779]
[1769183171320,5.66392583,127.15,127.08,5.72495779]
[1769183171528,5.66392583,127.15,127.05,5.72495779]
[1769183172222,7.0888,127.12,127.05,12.81735779]
[1769183172527,5.66392583,127.11,127.05,5.72495779]
[1769183173120,7.0888,127.12,127.05,5.72495779]
[1769183173325,10.85362542,127.13,127.05,5.72495779]
[1769183173514,5.66392583,127.12,127.05,5.72495779]
[1769183174424,5.18969959,127.13,127.05,5.72495779]
[1769183174614,10.85362542,127.13,127.05,5.72495779]
[1769183175017,12.75212583,127.13,127.05,5.72495779]
[1769183175413,10.85362542,127.16,127.05,5.72495779]
[1769183175726,7.0877,127.14,127.07,5.72495779]
[1769183175917,5.66392583,127.14,127.04,5.72495779]
[1769183177020,110.2501,127.15,127.05,12.81755779]
[1769183177021,12.75292583,127.12,127.05,12.81755779]
[1769183179425,7.0879,127.14,127.07,5.72495779]
[1769183179730,12.75182583,127.14,127.07,5.72495779]
[1769183180630,7.0882,127.13,127.07,5.72495779]
[1769183180925,7.0882,127.13,127.06,7.0919]
[1769183180926,12.75212583,127.13,127.06,12.81685779]
[1769183181730,5.66392583,127.11,127.04,7.0928]
[1769183182120,5.66392583,127.11,127.03,5.72495779]
[1769183182728,12.75202583,127.14,127.05,5.72495779]
[1769183183321,12.75202583,127.14,127.07,7.0915]
[1769183183528,5.66392583,127.14,127.06,5.72495779]
[1769183183927,12.75082583,127.16,127.06,5.72495779]
[1769183185031,12.75082583,127.16,127.09,7.0904]
[1769183185229,5.66392583,127.16,127.09,5.72495779]
[1769183185532,5.66392583,127.16,127.1,7.0898]
[1769183186536,5.67297467,127.15,127.06,5.84843337]
[1769183187434,5.67297467,127.13,127.03,5.84843337]
[1769183187621,7.0889,127.12,127.04,7.0926]
[1769183187823,12.76187467,127.12,127.03,5.84843337]
[1769183189041,5.67297467,127.12,127.05,5.84843337]
[1769183190034,5.67297467,127.12,127.07,7.0915]
[1769183191035,5.67297467,127.12,127.05,12.94053337]
[1769183191435,5.67297467,127.12,127.05,5.84843337]
[1769183192642,5.71773743,127.11,127.02,5.7879558]
[1769183193830,5.71773743,127.11,127.05,7.0926]
[1769183194049,5.71773743,127.11,127.04,5.7879558]
[1769183194649,10.91316735,127.14,127.06,5.7879558]
[1769183194845,5.71773743,127.18,127.07,5.7879558]
[1769183195045,5.71773743,127.18,127.08,5.7879558]
[1769183195457,12.80373743,127.17,127.1,7.0897]
[1769183196064,5.71773743,127.17,127.11,7.0892]
[1769183198770,415.3173,127.26,127.12,5.7879558]
[1769183198771,115.35792992,127.25,127.12,5.7879558]
[1769183199166,115.35792992,127.25,127.13,5.7879558]
[1769183199966,7.0832,127.22,127.15,12.8748558]
[1769183201375,5.71773743,127.23,127.16,7.0862]
[1769183202169,12.80043743,127.23,127.16,7.0862]
[1769183206075,12.80103743,127.22,127.15,5.7879558]
[1769183206774,5.71773743,127.21,127.15,7.0869]
[1769183207377,5.71773743,127.21,127.16,7.0864]
[1769183207577,5.71773743,127.23,127.16,7.0864]
[1769183208677,12.80093743,127.22,127.16,7.0864]
[1769183209078,12.80093743,127.22,127.14,5.7879558]
[1769183209874,12.80093743,127.22,127.15,7.087]
[1769183210484,5.71773743,127.2,127.15,7.087]
[1769183212286,5.71773743,127.2,127.14,5.7879558]
[1769183212287,5.71773743,127.19,127.14,7.0876]
[1769183212790,12.80263743,127.19,127.12,12.8761558]
[1769183212979,5.71773743,127.18,127.12,12.8761558]
[1769183213284,5.71773743,127.18,127.12,5.7879558]
[1769183214283,5.19542992,127.22,127.13,7.0882]
[1769183214483,5.71773743,127.21,127.13,7.0882]
[1769183215986,12.80253743,127.2,127.13,7.0882]
[1769183217184,5.71773743,127.2,127.12,5.7879558]
[1769183217485,12.27902992,127.22,127.13,5.7879558]
[1769183217486,7.0836,127.22,127.13,5.7879558]
[1769183217680,5.71773743,127.23,127.13,5.7879558]
[1769183218284,5.71773743,127.22,127.16,7.0863]
[1769183218781,5.71773743,127.22,127.13,5.7879558]
[1769183218782,5.71773743,127.22,127.14,12.8750558]
[1769183218987,5.71773743,127.22,127.14,7.0871]
[1769183218988,5.71773743,127.21,127.14,7.0871]
[1769183219982,7.0844,127.2,127.14,7.0871]
[1769183220179,5.71773743,127.23,127.16,5.7879558]
[1769183220378,7.0821,127.24,127.16,5.7879558]
[1769183220891,12.79983743,127.24,127.16,5.7879558]
[1769183221186,12.80063743,127.23,127.16,5.7879558]
[1769183221379,5.71773743,127.22,127.16,5.7879558]
[1769183221590,5.71773743,127.22,127.15,7.0866]
[1769183221788,5.71773743,127.21,127.14,5.7879558]
[1769183221982,5.71773743,127.21,127.12,5.77169419]
[1769183222488,5.6520002,127.2,127.14,7.0876]
[1769183222689,5.6520002,127.2,127.14,12.85929419]
[1769183226284,7.0843,127.21,127.15,12.74817961]
[1769183227183,6.00236351,127.22,127.16,5.66117961]
[1769183227378,6.00236351,127.24,127.16,5.66117961]
[1769183227579,6.00236351,127.26,127.16,5.66117961]
[1769183228879,7.0815,127.25,127.18,7.0853]
[1769183230289,7.0815,127.25,127.18,12.74647961]
[1769183231594,6.00236351,127.29,127.19,5.66117961]
[1769183232890,7.0804,127.27,127.21,7.0836]
[1769183233089,13.08276351,127.27,127.21,7.0836]
[1769183233291,6.00236351,127.26,127.19,5.66117961]
[1769183233696,6.00236351,127.26,127.21,7.0837]
[1769183234792,6.00236351,127.25,127.19,7.0844]
[1769183235588,6.00236351,127.24,127.17,7.0856]
[1769183235892,6.00236351,127.24,127.13,5.66117961]
[1769183236193,6.00236351,127.2,127.13,5.66117961]
[1769183236396,6.00236351,127.23,127.13,5.66117961]
[1769183236995,13.08556351,127.22,127.15,7.087]
[1769183238288,6.00236351,127.21,127.15,7.087]
[1769183242400,11.19779343,127.24,127.16,5.66117961]
[1769183242592,6.00236351,127.24,127.16,5.66117961]
[1769183242899,6.00236351,127.22,127.14,5.66117961]
[1769183244409,6.00236351,127.22,127.16,7.0864]
[1769183244591,6.00236351,127.26,127.16,5.66117961]
[1769183245096,13.08446351,127.24,127.18,7.0853]
[1769183245583,6.00236351,127.24,127.18,7.0853]
[1769183246502,13.08446351,127.24,127.17,12.74707961]
[1769183246795,13.08386351,127.26,127.18,5.66117961]
[1769183247007,6.00236351,127.29,127.18,5.66117961]
[1769183247300,6.00236351,127.29,127.2,5.66117961]
[1769183247997,7.0799,127.28,127.22,7.0831]
[1769183248299,13.08226351,127.28,127.22,7.0831]
[1769183248496,6.00236351,127.28,127.22,7.0831]
[1769183248701,13.08156351,127.3,127.23,5.66117961]
[1769183248893,13.08156351,127.3,127.24,7.0819]
[1769183249198,13.08156351,127.3,127.23,5.66117961]
[1769183249398,7.0793,127.29,127.23,5.66117961]
[1769183249998,13.08116351,127.3,127.23,12.74377961]
[1769183251602,6.00236351,127.3,127.24,7.0819]
[1769183251794,13.08036351,127.32,127.24,5.66117961]
[1769183252604,12.87443242,127.31,127.24,5.66117961]
[1769183252909,5.79623242,127.31,127.21,6.01070933]
[1769183253103,12.87573242,127.29,127.22,7.0831]
[1769183253301,5.79623242,127.29,127.21,6.01070933]
[1769183253501,110.1012,127.32,127.19,110.2066]
[1769183253502,5.79623242,127.28,127.19,116.21730933]
[1769183253699,5.79623242,127.28,127.2,6.01070933]
[1769183254495,5.79623242,127.28,127.22,7.083]
[1769183255901,12.87613242,127.28,127.2,6.01070933]
[1769183256908,7.0804,127.27,127.2,6.01070933]
[1769183257606,12.87663242,127.27,127.2,13.09490933]
[1769183257808,5.79623242,127.26,127.17,6.01070933]
[1769183258707,5.79623242,127.22,127.16,7.0861]
[1769183259217,5.79623242,127.22,127.12,6.01070933]
[1769183259614,7.0844,127.2,127.12,13.09920933]
[1769183259912,5.79623242,127.19,127.12,13.09920933]
[1769183260610,12.88113242,127.19,127.12,13.09920933]
[1769183261000,5.79623242,127.19,127.13,7.088]
[1769183261603,7.0833,127.22,127.15,6.01070933]
[1769183261801,12.87953242,127.22,127.15,6.01070933]
[1769183262409,5.79623242,127.22,127.15,13.09760933]
[1769183263409,5.18080286,127.24,127.16,6.01070933]
[1769183263604,5.79623242,127.25,127.16,6.01070933]
[1769183264810,7.0807,127.27,127.19,13.09540933]
[1769183265013,7.0807,127.27,127.2,6.01070933]
[1769183265514,5.79623242,127.28,127.2,13.09490933]
[1769183266916,12.87613242,127.28,127.2,13.09490933]
[1769183268314,12.87613242,127.28,127.21,7.0837]
[1769183269416,12.87613242,127.28,127.2,6.01070933]
[1769183269615,7.0804,127.27,127.2,6.01070933]
[1769183269818,5.79623242,127.26,127.17,116.23350933]
[1769183270315,5.79623242,127.26,127.18,6.01070933]
[1769183270515,5.79623242,127.25,127.18,6.01070933]
[1769183271214,7.0809,127.27,127.2,6.01070933]
[1769183271717,5.79623242,127.26,127.19,7.0848]
[1769183272220,5.79623242,127.26,127.19,13.09550933]
[1769183273025,12.87723242,127.26,127.19,13.09550933]
[1769183274513,5.79623242,127.25,127.19,7.0848]
[1769183276318,7.081,127.26,127.2,6.01070933]
[1769183277110,7.081,127.26,127.2,13.09500933]
[1769183277317,5.79623242,127.28,127.2,6.01070933]
[1769183278209,5.79623242,127.3,127.22,13.09380933]
[1769183278411,5.79623242,127.3,127.22,6.01070933]
[1769183279822,5.79623242,127.3,127.24,13.09270933]
[1769183281117,5.79623242,127.3,127.24,6.01070933]
[1769183281118,12.87493242,127.3,127.24,6.01070933]
[1769183281428,5.79623242,127.3,127.22,6.01070933]
[1769183281726,5.79623242,127.28,127.19,6.01070933]
[1769183282424,12.87623242,127.28,127.22,7.0831]
[1769183282620,5.79623242,127.28,127.22,7.0831]
[1769183282922,5.79623242,127.28,127.21,6.40686694]
[1769183283120,5.79623242,127.28,127.21,13.49006694]
[1769183284326,7.0804,127.27,127.21,13.49006694]
[1769183284525,5.79623242,127.28,127.21,13.49006694]
[1769183284923,5.79623242,127.28,127.21,6.40686694]
[1769183285130,7.0798,127.29,127.23,6.40686694]
[1769183285626,11.40765236,127.34,127.26,6.40686694]
[1769183286327,11.40765236,127.34,127.26,13.48756694]
[1769183286633,6.2268495,127.34,127.26,6.40686694]
[1769183287926,13.12116669,127.33,127.26,13.48726694]
[1769183288531,13.12116669,127.33,127.27,7.0804]
[1769183289620,6.04406669,127.33,127.27,7.0804]
[1769183289927,6.04406669,127.36,127.28,12.96539716]
[1769183291131,13.12006669,127.35,127.28,12.96539716]
[1769183291332,6.04406669,127.35,127.28,5.88569716]
[1769183291628,6.04406669,127.38,127.28,5.88569716]
[1769183291828,210.37754878,127.4,127.31,5.88569716]
[1769183292027,6.04406669,127.42,127.32,5.88569716]
[1769183292220,6.04406669,127.45,127.33,115.97229716]
[1769183292423,116.00826669,127.48,127.35,5.88569716]
[1769183292629,109.9642,127.48,127.36,5.88569716]
[1769183292822,6.04406669,127.49,127.39,5.88569716]
[1769183293130,6.04406669,127.49,127.4,5.88569716]
[1769183293326,121.15336955,127.52,127.4,5.88569716]
[1769183293526,6.04406669,127.51,127.41,5.88569716]
[1769183294029,6.04406669,127.49,127.39,5.88569716]
[1769183294734,6.04406669,127.48,127.39,5.88569716]
[1769183294924,6.04406669,127.51,127.4,5.88569716]
[1769183295324,6.04406669,127.51,127.42,5.88569716]
[1769183296230,6.04406669,127.48,127.39,5.88569716]
[1769183296641,6.04406669,127.48,127.37,5.88569716]
[1769183296822,0.05022069,127.45,127.39,115.91819716]
[1769183297024,0.05022069,127.45,127.4,5.88569716]
[1769183297221,6.04406669,127.49,127.4,5.88569716]
[1769183297634,6.04406669,127.49,127.41,0.05108302]
[1769183297838,6.04406669,127.49,127.41,5.93678018]
[1769183298031,6.04406669,127.49,127.41,5.88569716]
[1769183298736,6.04406669,127.49,127.44,0.05155005]
[1769183299039,6.04406669,127.48,127.38,12.95989716]
[1769183299234,6.04406669,127.48,127.36,123.02029716]
[1769183299543,6.04406669,127.47,127.37,5.88569716]
[1769183299736,6.04406669,127.45,127.34,115.95899716]
[1769183299923,6.04406669,127.45,127.34,12.96209716]
[1769183300128,6.04406669,127.45,127.35,5.88569716]
[1769183301036,6.04406669,127.44,127.35,5.88569716]
[1769183301438,5.18080286,127.46,127.37,5.88569716]
[1769183301635,6.04406669,127.47,127.38,5.88569716]
[1769183301830,6.04406669,127.47,127.38,12.95959716]
[1769183302743,6.04406669,127.47,127.38,5.88569716]
[1769183303035,11.22486955,127.47,127.38,5.88569716]
[1769183303339,6.04406669,127.46,127.38,5.88569716]
[1769183303929,5.18080286,127.47,127.38,5.88569716]
[1769183304444,6.04406669,127.46,127.38,5.88569716]
[1769183305041,6.04406669,127.45,127.35,12.96129716]
[1769183305335,11.22486955,127.44,127.35,12.96129716]
[1769183305728,6.04406669,127.46,127.36,5.88569716]
[1769183306236,13.11406669,127.46,127.37,7.0747]
[1769183306440,6.04406669,127.45,127.36,5.88569716]
[1769183308036,13.11466669,127.45,127.36,5.88569716]
[1769183308440,13.11516669,127.44,127.36,12.96089716]
[1769183309335,7.0716,127.43,127.36,5.88569716]
[1769183309539,11.22486955,127.47,127.36,5.88569716]